[Event "*** Titled Tuesday Blitz"]
[Site "Chess.com"]
[Date "2020.10.20"]
[Round "7"]
[White "SergeyKarjakin"]
[Black "1stSecond"]
[Result "1-0"]
[WhiteElo "2899"]
[BlackElo "2767"]
[TimeControl "180+1"]
[EndTime "11:21:10 PDT"]
[Termination "SergeyKarjakin won on time"]

1. d4 {[%clk 0:03:00.9]} 1... Nf6 {[%clk 0:02:59.8]} 2. Bf4 {[%clk 0:03:00.8]}
2... g6 {[%clk 0:02:53.9]} 3. Nc3 {[%clk 0:02:59.4]} 3... Bg7 {[%clk 0:02:50]}
4. e4 {[%clk 0:02:59.2]} 4... d6 {[%clk 0:02:49.3]} 5. h3 {[%clk 0:02:58.4]}
5... a6 {[%clk 0:02:47.5]} 6. Nf3 {[%clk 0:02:56.9]} 6... O-O {[%clk 0:02:45.1]}
7. Be2 {[%clk 0:02:47.4]} 7... b5 {[%clk 0:02:43.5]} 8. e5 {[%clk 0:02:47.4]}
8... Nfd7 {[%clk 0:02:43.2]} 9. O-O {[%clk 0:02:34.6]} 9... Nc6 {[%clk
0:02:18.3]} 10. Re1 {[%clk 0:02:07.2]} 10... Bb7 {[%clk 0:01:51.5]} 11. Bf1
{[%clk 0:01:47.4]} 11... dxe5 {[%clk 0:01:48.5]} 12. dxe5 {[%clk 0:01:47.6]}
12... Nc5 {[%clk 0:01:40.9]} 13. Nd5 {[%clk 0:01:29]} 13... Ne6 {[%clk
0:01:36.7]} 14. Bg3 {[%clk 0:01:27.8]} 14... Ncd4 {[%clk 0:01:29.3]} 15. Nxd4
{[%clk 0:01:21.2]} 15... Qxd5 {[%clk 0:01:25.9]} 16. Nb3 {[%clk 0:01:13.9]}
16... Rad8 {[%clk 0:01:18.6]} 17. Qxd5 {[%clk 0:01:09.3]} 17... Bxd5 {[%clk
0:01:14.7]} 18. a4 {[%clk 0:01:09.8]} 18... c6 {[%clk 0:01:02.8]} 19. axb5
{[%clk 0:00:56.3]} 19... axb5 {[%clk 0:01:03.7]} 20. Ra7 {[%clk 0:00:56.3]}
20... Rfe8 {[%clk 0:00:56.7]} 21. Rea1 {[%clk 0:00:36.5]} 21... g5 {[%clk
0:00:40.7]} 22. Na5 {[%clk 0:00:27.5]} 22... Nf4 {[%clk 0:00:34.5]} 23. Re1
{[%clk 0:00:23.2]} 23... Ra8 {[%clk 0:00:33.3]} 24. Rxa8 {[%clk 0:00:21.5]}
24... Rxa8 {[%clk 0:00:34.2]} 25. b4 {[%clk 0:00:21.3]} 25... e6 {[%clk
0:00:30.8]} 26. h4 {[%clk 0:00:18]} 26... h6 {[%clk 0:00:31.1]} 27. hxg5 {[%clk
0:00:17.4]} 27... hxg5 {[%clk 0:00:32]} 28. c3 {[%clk 0:00:16.8]} 28... Kh7
{[%clk 0:00:30]} 29. f3 {[%clk 0:00:16.4]} 29... Kg6 {[%clk 0:00:28.6]} 30. Bf2
{[%clk 0:00:16.2]} 30... Rh8 {[%clk 0:00:20.9]} 31. Bd4 {[%clk 0:00:15.2]} 31...
g4 {[%clk 0:00:19.8]} 32. fxg4 {[%clk 0:00:13.4]} 32... Kg5 {[%clk 0:00:20.4]}
33. Nb7 {[%clk 0:00:12.6]} 33... Kxg4 {[%clk 0:00:14.9]} 34. Nd6 {[%clk
0:00:13.1]} 34... Rf8 {[%clk 0:00:14.6]} 35. Re3 {[%clk 0:00:11.3]} 35... Bh6
{[%clk 0:00:12.6]} 36. Kh2 {[%clk 0:00:09]} 36... Bg5 {[%clk 0:00:11.6]} 37.
Rg3+ {[%clk 0:00:08.6]} 37... Kh5 {[%clk 0:00:12.1]} 38. Kg1 {[%clk 0:00:07.9]}
38... Kh6 {[%clk 0:00:09.6]} 39. Be3 {[%clk 0:00:05.5]} 39... Ba2 {[%clk
0:00:05.4]} 40. Rxg5 {[%clk 0:00:05.1]} 40... Kxg5 {[%clk 0:00:05.5]} 41. g3
{[%clk 0:00:05.7]} 41... Kg4 {[%clk 0:00:05.2]} 42. Bxf4 {[%clk 0:00:05.9]}
42... Bd5 {[%clk 0:00:05.5]} 43. Kf2 {[%clk 0:00:05.3]} 43... Ra8 {[%clk
0:00:04.4]} 44. Be2+ {[%clk 0:00:05.9]} 44... Kh3 {[%clk 0:00:04.3]} 45. Nxf7
{[%clk 0:00:06.5]} 45... Ra2 {[%clk 0:00:03.9]} 46. Ng5+ {[%clk 0:00:05.8]}
46... Kh2 {[%clk 0:00:04.5]} 47. g4+ {[%clk 0:00:05.3]} 47... Kh1 {[%clk
0:00:04.6]} 48. Nf3 {[%clk 0:00:04.6]} 48... Bc4 {[%clk 0:00:03.4]} 49. Nd4
{[%clk 0:00:04.7]} 49... Bxe2 {[%clk 0:00:01.4]} 50. Nxe2 {[%clk 0:00:05.6]}
50... Rc2 {[%clk 0:00:01.8]} 51. g5 {[%clk 0:00:05.4]} 51... Ra2 {[%clk
0:00:02.3]} 52. g6 {[%clk 0:00:05.1]} 52... Ra7 {[%clk 0:00:02.9]} 53. g7 {[%clk
0:00:03.6]} 53... Rxg7 {[%clk 0:00:02.7]} 54. Ng3+ {[%clk 0:00:03.8]} 54... Kh2
{[%clk 0:00:02]} 55. Nh5+ {[%clk 0:00:03.7]} 55... Kh1 {[%clk 0:00:02.9]} 56.
Nxg7 {[%clk 0:00:03.7]} 56... c5 {[%clk 0:00:03.8]} 57. Be3 {[%clk 0:00:02.2]}
57... c4 {[%clk 0:00:03.2]} 58. Nxe6 {[%clk 0:00:02.3]} 58... Kh2 {[%clk
0:00:04.1]} 59. Nd4 {[%clk 0:00:02.9]} 59... Kh3 {[%clk 0:00:04.6]} 60. e6
{[%clk 0:00:03.8]} 60... Kg4 {[%clk 0:00:04.9]} 61. e7 {[%clk 0:00:04.7]} 61...
Kh5 {[%clk 0:00:02.2]} 62. e8=Q+ {[%clk 0:00:05.6]} 62... Kg4 {[%clk 0:00:02.8]}
63. Qf8 {[%clk 0:00:06.5]} 63... Kh5 {[%clk 0:00:02.8]} 64. Qf7+ {[%clk
0:00:07.4]} 1-0

[Event "*** Titled Tuesday Blitz"]
[Site "Chess.com"]
[Date "2020.10.20"]
[Round "7"]
[White "mamey78"]
[Black "tylityli"]
[Result "1/2-1/2"]
[WhiteElo "2402"]
[BlackElo "2235"]
[TimeControl "180+1"]
[EndTime "11:21:14 PDT"]
[Termination "Game drawn by repetition"]

1. e4 {[%clk 0:03:00.9]} 1... e5 {[%clk 0:02:59.4]} 2. Nf3 {[%clk 0:02:59.2]}
2... Nc6 {[%clk 0:02:59.5]} 3. Bb5 {[%clk 0:02:59.2]} 3... a6 {[%clk 0:02:59.2]}
4. Ba4 {[%clk 0:02:59.1]} 4... Nf6 {[%clk 0:02:58.5]} 5. O-O {[%clk 0:02:59.4]}
5... b5 {[%clk 0:02:58.2]} 6. Bb3 {[%clk 0:02:58.8]} 6... Be7 {[%clk 0:02:57.3]}
7. Re1 {[%clk 0:02:56.1]} 7... d6 {[%clk 0:02:57.2]} 8. c3 {[%clk 0:02:55.3]}
8... O-O {[%clk 0:02:56.1]} 9. h3 {[%clk 0:02:55.1]} 9... Nd7 {[%clk 0:02:53.6]}
10. d4 {[%clk 0:02:53.9]} 10... Bf6 {[%clk 0:02:53.9]} 11. a4 {[%clk 0:02:47.5]}
11... Ne7 {[%clk 0:02:47.2]} 12. axb5 {[%clk 0:02:45.5]} 12... Bb7 {[%clk
0:02:46.6]} 13. bxa6 {[%clk 0:02:42.5]} 13... Bxa6 {[%clk 0:02:46.4]} 14. Nbd2
{[%clk 0:02:32.3]} 14... Qb8 {[%clk 0:02:33.4]} 15. Bc4 {[%clk 0:02:26]} 15...
Bxc4 {[%clk 0:02:20.6]} 16. Rxa8 {[%clk 0:02:26.9]} 16... Qxa8 {[%clk 0:02:21]}
17. Nxc4 {[%clk 0:02:25.8]} 17... Qc6 {[%clk 0:02:18.8]} 18. dxe5 {[%clk
0:02:16.2]} 18... Bxe5 {[%clk 0:02:16.5]} 19. Ncxe5 {[%clk 0:02:06.6]} 19...
dxe5 {[%clk 0:02:14.6]} 20. Bg5 {[%clk 0:02:01.2]} 20... Ng6 {[%clk 0:02:14.1]}
21. Qd5 {[%clk 0:01:56.7]} 21... Qxd5 {[%clk 0:02:08.3]} 22. exd5 {[%clk
0:01:57.6]} 22... Ra8 {[%clk 0:02:02.7]} 23. g3 {[%clk 0:01:32.5]} 23... Ra2
{[%clk 0:01:59.5]} 24. Re2 {[%clk 0:01:31.7]} 24... f6 {[%clk 0:01:55.7]} 25.
Be3 {[%clk 0:01:31]} 25... Kf7 {[%clk 0:01:51.5]} 26. Kf1 {[%clk 0:01:30]} 26...
Ne7 {[%clk 0:01:50.5]} 27. c4 {[%clk 0:01:28]} 27... Nf5 {[%clk 0:01:49.2]} 28.
b4 {[%clk 0:01:26.5]} 28... Ra1+ {[%clk 0:01:43.5]} 29. Kg2 {[%clk 0:01:20.2]}
29... Rb1 {[%clk 0:01:39.5]} 30. b5 {[%clk 0:01:17.2]} 30... Nxe3+ {[%clk
0:01:34.4]} 31. Rxe3 {[%clk 0:01:13.6]} 31... Rc1 {[%clk 0:01:34.4]} 32. Nd2
{[%clk 0:01:12.7]} 32... Nb6 {[%clk 0:01:33.7]} 33. Re4 {[%clk 0:01:00.2]} 33...
Rc2 {[%clk 0:01:27.8]} 34. Nb3 {[%clk 0:00:55.2]} 34... Nxc4 {[%clk 0:01:18.3]}
35. Re1 {[%clk 0:00:41.5]} 35... Nd6 {[%clk 0:01:11.7]} 36. Ra1 {[%clk
0:00:36.6]} 36... Nxb5 {[%clk 0:01:10.1]} 37. Ra5 {[%clk 0:00:35.9]} 37... Nd4
{[%clk 0:01:07.6]} 38. Nc5 {[%clk 0:00:30.5]} 38... Ke7 {[%clk 0:00:58.2]} 39.
g4 {[%clk 0:00:29.4]} 39... Ne2 {[%clk 0:00:52.6]} 40. Ne4 {[%clk 0:00:26.5]}
40... Nf4+ {[%clk 0:00:51.3]} 41. Kg3 {[%clk 0:00:25.9]} 41... h5 {[%clk
0:00:44]} 42. Ra7 {[%clk 0:00:23.1]} 42... Kd8 {[%clk 0:00:41.7]} 43. d6 {[%clk
0:00:21.3]} 43... hxg4 {[%clk 0:00:37]} 44. hxg4 {[%clk 0:00:20]} 44... Ne6
{[%clk 0:00:35.3]} 45. dxc7+ {[%clk 0:00:16.1]} 45... Rxc7 {[%clk 0:00:34.5]}
46. Ra8+ {[%clk 0:00:15.8]} 46... Rc8 {[%clk 0:00:32.3]} 47. Ra7 {[%clk
0:00:15.2]} 47... Rc7 {[%clk 0:00:32.1]} 48. Ra8+ {[%clk 0:00:15.1]} 48... Ke7
{[%clk 0:00:31.4]} 49. f3 {[%clk 0:00:13.9]} 49... Kf7 {[%clk 0:00:29.3]} 50.
Rb8 {[%clk 0:00:12.5]} 50... Kg6 {[%clk 0:00:28.9]} 51. Nd6 {[%clk 0:00:10.7]}
51... Nf4 {[%clk 0:00:26.5]} 52. Rb2 {[%clk 0:00:08.4]} 52... Rc3 {[%clk
0:00:20.4]} 53. Nf5 {[%clk 0:00:08.2]} 53... Ne6 {[%clk 0:00:18.4]} 54. Ne7+
{[%clk 0:00:06.8]} 54... Kf7 {[%clk 0:00:17.9]} 55. Nf5 {[%clk 0:00:07.7]} 55...
Nd4 {[%clk 0:00:16.3]} 56. Rb7+ {[%clk 0:00:06.1]} 56... Kf8 {[%clk 0:00:13.9]}
57. Nxg7 {[%clk 0:00:04.7]} 57... Rxf3+ {[%clk 0:00:13.1]} 58. Kh4 {[%clk
0:00:05]} 58... Rf4 {[%clk 0:00:13]} 59. Nh5 {[%clk 0:00:04.9]} 59... Rf1 {[%clk
0:00:12.2]} 60. Rb6 {[%clk 0:00:05.8]} 60... Kf7 {[%clk 0:00:09.9]} 61. Rb7+
{[%clk 0:00:05.7]} 61... Kg6 {[%clk 0:00:08.9]} 62. Rg7+ {[%clk 0:00:05.1]}
62... Kh6 {[%clk 0:00:09]} 63. Rf7 {[%clk 0:00:06]} 63... Kg6 {[%clk 0:00:08.8]}
64. Rg7+ {[%clk 0:00:05.8]} 64... Kh6 {[%clk 0:00:08.9]} 65. Rf7 {[%clk
0:00:06.2]} 65... Kg6 {[%clk 0:00:09.2]} 66. Rg7+ {[%clk 0:00:06.3]} 1/2-1/2

[Event "*** Titled Tuesday Blitz"]
[Site "Chess.com"]
[Date "2020.10.20"]
[Round "7"]
[White "Ajedrez_con_German"]
[Black "krasavetc"]
[Result "1-0"]
[WhiteElo "2450"]
[BlackElo "2326"]
[TimeControl "180+1"]
[EndTime "11:21:15 PDT"]
[Termination "Ajedrez_con_German won by resignation"]

1. Nf3 {[%clk 0:03:00.9]} 1... e6 {[%clk 0:03:00.9]} 2. e3 {[%clk 0:03:01.1]}
2... d6 {[%clk 0:03:00.2]} 3. b3 {[%clk 0:03:01.3]} 3... Nf6 {[%clk 0:03:01.1]}
4. d4 {[%clk 0:03:01.1]} 4... Be7 {[%clk 0:03:02]} 5. Bb2 {[%clk 0:03:01.7]}
5... O-O {[%clk 0:03:02.8]} 6. Be2 {[%clk 0:03:02.2]} 6... c5 {[%clk 0:03:02.4]}
7. O-O {[%clk 0:03:03.1]} 7... d5 {[%clk 0:03:01]} 8. c4 {[%clk 0:03:02.1]} 8...
Nc6 {[%clk 0:02:58.1]} 9. cxd5 {[%clk 0:02:58]} 9... exd5 {[%clk 0:02:56.8]} 10.
Nc3 {[%clk 0:02:57.8]} 10... cxd4 {[%clk 0:02:55.3]} 11. Nxd4 {[%clk 0:02:57.7]}
11... Be6 {[%clk 0:02:51.8]} 12. Rc1 {[%clk 0:02:56.9]} 12... Rc8 {[%clk
0:02:42.6]} 13. Nxc6 {[%clk 0:02:55.9]} 13... bxc6 {[%clk 0:02:41.4]} 14. Na4
{[%clk 0:02:55.4]} 14... Qa5 {[%clk 0:02:39.3]} 15. Bc3 {[%clk 0:02:45.5]} 15...
Qc7 {[%clk 0:02:35.2]} 16. Bd4 {[%clk 0:02:41.1]} 16... Ne4 {[%clk 0:02:24.9]}
17. Bf3 {[%clk 0:02:34.3]} 17... f5 {[%clk 0:02:06.5]} 18. Nc5 {[%clk
0:02:27.9]} 18... Bxc5 {[%clk 0:01:45.2]} 19. Bxc5 {[%clk 0:02:28.8]} 19... Rfd8
{[%clk 0:01:42]} 20. Qd4 {[%clk 0:02:23.3]} 20... Qa5 {[%clk 0:01:31.6]} 21.
Bxe4 {[%clk 0:01:33.1]} 21... dxe4 {[%clk 0:01:24.6]} 22. Qe5 {[%clk 0:01:32]}
22... Bf7 {[%clk 0:01:20.8]} 23. b4 {[%clk 0:01:27.9]} 23... Qxa2 {[%clk
0:01:18.9]} 24. Bd4 {[%clk 0:01:24]} 24... Rxd4 {[%clk 0:01:12.2]} 25. Qxd4
{[%clk 0:01:23.9]} 25... Qd5 {[%clk 0:01:07.3]} 26. Qxa7 {[%clk 0:01:19.3]}
26... f4 {[%clk 0:00:54]} 27. Rfd1 {[%clk 0:01:11.4]} 27... Qg5 {[%clk
0:00:52.1]} 28. exf4 {[%clk 0:01:02]} 28... Qxf4 {[%clk 0:00:53]} 29. Qe3 {[%clk
0:00:55.5]} 29... Qg4 {[%clk 0:00:50]} 30. b5 {[%clk 0:00:48.9]} 30... Bd5
{[%clk 0:00:39.6]} 31. bxc6 {[%clk 0:00:44.5]} 31... Bxc6 {[%clk 0:00:35.5]} 32.
h3 {[%clk 0:00:43]} 32... Qf5 {[%clk 0:00:31.6]} 33. Rd6 {[%clk 0:00:39.9]}
33... Bb7 {[%clk 0:00:24.2]} 34. Rxc8+ {[%clk 0:00:35.7]} 34... Bxc8 {[%clk
0:00:21.8]} 35. Rd8+ {[%clk 0:00:25.6]} 35... Kf7 {[%clk 0:00:21.1]} 36. Qb3+
{[%clk 0:00:17]} 36... Be6 {[%clk 0:00:19.6]} 37. Qb4 {[%clk 0:00:13.3]} 37...
Qg5 {[%clk 0:00:14.3]} 38. Qf8+ {[%clk 0:00:12.3]} 38... Kg6 {[%clk 0:00:14.1]}
39. Qd6 {[%clk 0:00:11.2]} 39... Qf6 {[%clk 0:00:10.3]} 40. Rf8 {[%clk
0:00:09.6]} 40... Qa1+ {[%clk 0:00:07.6]} 41. Kh2 {[%clk 0:00:09.3]} 41... Qa2
{[%clk 0:00:08]} 42. Qf4 {[%clk 0:00:07.4]} 42... Qd5 {[%clk 0:00:05.2]} 43. Re8
{[%clk 0:00:07.1]} 43... Bf5 {[%clk 0:00:03.5]} 44. Re5 {[%clk 0:00:06.5]} 44...
Qf7 {[%clk 0:00:02.1]} 45. Qg3+ {[%clk 0:00:06.2]} 45... Kf6 {[%clk 0:00:01.9]}
46. Rc5 {[%clk 0:00:05.1]} 46... g6 {[%clk 0:00:02.1]} 47. Rc6+ {[%clk
0:00:04.8]} 47... Kg7 {[%clk 0:00:01.4]} 48. Qe5+ {[%clk 0:00:05]} 48... Kh6
{[%clk 0:00:02.3]} 49. Qf4+ {[%clk 0:00:05.2]} 49... Kg7 {[%clk 0:00:02.9]} 50.
g4 {[%clk 0:00:04.9]} 50... Bd7 {[%clk 0:00:02.1]} 51. Qxf7+ {[%clk 0:00:04.8]}
51... Kxf7 {[%clk 0:00:03]} 52. Rc4 {[%clk 0:00:05]} 52... Ke6 {[%clk
0:00:03.9]} 53. Rxe4+ {[%clk 0:00:04.8]} 53... Kf6 {[%clk 0:00:04.8]} 54. Re3
{[%clk 0:00:05.7]} 54... Bc6 {[%clk 0:00:05]} 55. Kg3 {[%clk 0:00:06.6]} 55...
Kg5 {[%clk 0:00:05.3]} 56. h4+ {[%clk 0:00:07.1]} 56... Kf6 {[%clk 0:00:05.1]}
57. g5+ {[%clk 0:00:08]} 57... Kf5 {[%clk 0:00:04.9]} 58. Rc3 {[%clk 0:00:07.7]}
58... Bd5 {[%clk 0:00:03.8]} 59. Rc5 {[%clk 0:00:07.6]} 59... Ke6 {[%clk
0:00:03.1]} 60. Ra5 {[%clk 0:00:07.5]} 60... Be4 {[%clk 0:00:02.6]} 61. Ra7
{[%clk 0:00:07.3]} 61... Bf5 {[%clk 0:00:02.4]} 62. Rxh7 {[%clk 0:00:07.2]}
62... Ke5 {[%clk 0:00:03.3]} 63. Rf7 {[%clk 0:00:06.8]} 63... Ke6 {[%clk
0:00:04.2]} 64. Rxf5 {[%clk 0:00:07]} 64... Kxf5 {[%clk 0:00:03.7]} 65. f4
{[%clk 0:00:07.4]} 65... Ke4 {[%clk 0:00:03.7]} 66. Kg4 {[%clk 0:00:08.3]} 1-0

[Event "*** Titled Tuesday Blitz"]
[Site "Chess.com"]
[Date "2020.10.20"]
[Round "7"]
[White "HrvojeZagreb"]
[Black "alexwinter25"]
[Result "0-1"]
[WhiteElo "2202"]
[BlackElo "2358"]
[TimeControl "180+1"]
[EndTime "11:21:15 PDT"]
[Termination "alexwinter25 won by resignation"]

1. d4 {[%clk 0:03:00.9]} 1... d5 {[%clk 0:02:59.5]} 2. Bf4 {[%clk 0:03:00.3]}
2... Nf6 {[%clk 0:02:58.4]} 3. e3 {[%clk 0:03:00.5]} 3... c5 {[%clk 0:02:58.8]}
4. Nc3 {[%clk 0:02:59.9]} 4... e6 {[%clk 0:02:54.1]} 5. Nb5 {[%clk 0:02:58.4]}
5... Na6 {[%clk 0:02:53.7]} 6. c3 {[%clk 0:02:57.2]} 6... Be7 {[%clk 0:02:45.9]}
7. Bd3 {[%clk 0:01:56.6]} 7... O-O {[%clk 0:02:43.9]} 8. h4 {[%clk 0:01:53.8]}
8... cxd4 {[%clk 0:02:41.4]} 9. exd4 {[%clk 0:01:53.2]} 9... Bd7 {[%clk
0:02:42]} 10. a4 {[%clk 0:01:43.3]} 10... Bxb5 {[%clk 0:02:32.2]} 11. axb5
{[%clk 0:01:44.2]} 11... Nc7 {[%clk 0:02:26.2]} 12. Nf3 {[%clk 0:01:36.9]} 12...
Nce8 {[%clk 0:02:23.5]} 13. Ng5 {[%clk 0:01:28.6]} 13... Nd6 {[%clk 0:02:21.5]}
14. Qe2 {[%clk 0:01:19.4]} 14... h6 {[%clk 0:02:12.9]} 15. Bc2 {[%clk 0:00:30]}
15... a6 {[%clk 0:01:56.9]} 16. bxa6 {[%clk 0:00:28.5]} 16... Rxa6 {[%clk
0:01:56.3]} 17. Rxa6 {[%clk 0:00:28.5]} 17... bxa6 {[%clk 0:01:56.6]} 18. Qd3
{[%clk 0:00:24]} 18... Qa5 {[%clk 0:01:34]} 19. Bxd6 {[%clk 0:00:14.3]} 19...
Bxd6 {[%clk 0:01:28]} 20. Nh7 {[%clk 0:00:14.5]} 20... Rb8 {[%clk 0:00:58.9]}
21. Nxf6+ {[%clk 0:00:14.1]} 21... gxf6 {[%clk 0:00:59.5]} 22. Qh7+ {[%clk
0:00:13.2]} 22... Kf8 {[%clk 0:01:00.1]} 23. Qxh6+ {[%clk 0:00:08.6]} 23... Ke7
{[%clk 0:01:00.3]} 24. Qc1 {[%clk 0:00:08.4]} 24... Qb5 {[%clk 0:00:56.1]} 25.
h5 {[%clk 0:00:06.7]} 25... Qxb2 {[%clk 0:00:41.2]} 26. Qxb2 {[%clk 0:00:05.7]}
26... Rxb2 {[%clk 0:00:42.1]} 27. h6 {[%clk 0:00:04.3]} 27... Rb8 {[%clk
0:00:29.2]} 28. h7 {[%clk 0:00:03.8]} 28... Rh8 {[%clk 0:00:29.9]} 29. Kd2
{[%clk 0:00:04.2]} 29... f5 {[%clk 0:00:30.2]} 30. Ra1 {[%clk 0:00:03.3]} 30...
Rxh7 {[%clk 0:00:28.7]} 31. Rxa6 {[%clk 0:00:03.4]} 31... Rh2 {[%clk 0:00:28.1]}
32. Ke2 {[%clk 0:00:03.7]} 32... Rxg2 {[%clk 0:00:27.7]} 33. Kf3 {[%clk
0:00:03.7]} 33... Rg1 {[%clk 0:00:27.1]} 34. Ra7+ {[%clk 0:00:04.6]} 34... Kf6
{[%clk 0:00:27.2]} 35. Ba4 {[%clk 0:00:04]} 35... Rc1 {[%clk 0:00:25]} 36. Be8
{[%clk 0:00:04.3]} 36... Rxc3+ {[%clk 0:00:25.2]} 37. Kg2 {[%clk 0:00:04.8]}
37... Be7 {[%clk 0:00:25.6]} 38. Ra4 {[%clk 0:00:02.9]} 38... Rc4 {[%clk
0:00:21.6]} 39. Rxc4 {[%clk 0:00:01.8]} 39... dxc4 {[%clk 0:00:22.5]} 40. Bb5
{[%clk 0:00:02.2]} 40... c3 {[%clk 0:00:22.3]} 41. Bd3 {[%clk 0:00:02.9]} 41...
Bd6 {[%clk 0:00:17.3]} 42. Kf3 {[%clk 0:00:02.8]} 42... Kg5 {[%clk 0:00:16.8]}
43. Ke2 {[%clk 0:00:02.9]} 43... Bf4 {[%clk 0:00:15]} 44. Bc2 {[%clk 0:00:03.2]}
44... Bd2 {[%clk 0:00:15.2]} 45. Ba4 {[%clk 0:00:03.3]} 45... f6 {[%clk
0:00:14.7]} 46. Bd7 {[%clk 0:00:03.1]} 46... e5 {[%clk 0:00:15.2]} 47. d5 {[%clk
0:00:02.8]} 47... Kg6 {[%clk 0:00:11.6]} 48. Be6 {[%clk 0:00:02.8]} 48... Kg7
{[%clk 0:00:07.1]} 49. Bxf5 {[%clk 0:00:02.9]} 49... Kf8 {[%clk 0:00:07.6]} 50.
Kd3 {[%clk 0:00:03.2]} 50... Ke7 {[%clk 0:00:08.1]} 51. Be4 {[%clk 0:00:03.7]}
51... Kd6 {[%clk 0:00:09]} 52. f3 {[%clk 0:00:04]} 52... Kc5 {[%clk 0:00:08.9]}
53. Kc2 {[%clk 0:00:04.4]} 53... Kd6 {[%clk 0:00:07.5]} 54. Kd3 {[%clk
0:00:04.7]} 54... Be1 {[%clk 0:00:07.6]} 55. Kc2 {[%clk 0:00:04.9]} 55... f5
{[%clk 0:00:06.8]} 56. Bxf5 {[%clk 0:00:04.8]} 56... Kxd5 {[%clk 0:00:07.7]} 57.
Be4+ {[%clk 0:00:05.7]} 57... Kd4 {[%clk 0:00:08.2]} 58. Ba8 {[%clk 0:00:06.1]}
58... Ke3 {[%clk 0:00:07.7]} 59. Bb7 {[%clk 0:00:07]} 59... Bd2 {[%clk
0:00:08.3]} 60. Be4 {[%clk 0:00:07.1]} 60... Kf2 {[%clk 0:00:07.5]} 61. Bc6
{[%clk 0:00:08]} 61... Ke3 {[%clk 0:00:08.2]} 62. Be4 {[%clk 0:00:08.6]} 62...
Kd4 {[%clk 0:00:08.1]} 63. Bc6 {[%clk 0:00:09.5]} 63... Kc5 {[%clk 0:00:08.5]}
64. Be4 {[%clk 0:00:10.4]} 64... Kb6 {[%clk 0:00:08.8]} 65. Ba8 {[%clk
0:00:11.3]} 65... Ka7 {[%clk 0:00:08.9]} 66. Be4 {[%clk 0:00:12.2]} 66... Kb6
{[%clk 0:00:09.8]} 67. Bd3 {[%clk 0:00:13]} 67... Ka5 {[%clk 0:00:10.7]} 68. Be4
{[%clk 0:00:13.6]} 68... Kb4 {[%clk 0:00:10.9]} 69. Bd3 {[%clk 0:00:14.5]} 69...
Bf4 {[%clk 0:00:11.4]} 70. Be4 {[%clk 0:00:15.4]} 70... Kc5 {[%clk 0:00:11.5]}
71. Bd3 {[%clk 0:00:16.3]} 71... Kd4 {[%clk 0:00:12]} 72. Be4 {[%clk 0:00:17.2]}
72... Ke3 {[%clk 0:00:12.4]} 73. Bd3 {[%clk 0:00:18.1]} 73... Kxf3 {[%clk
0:00:11.4]} 74. Be4+ {[%clk 0:00:19]} 74... Kxe4 {[%clk 0:00:11.4]} 75. Kxc3
{[%clk 0:00:19.3]} 75... Ke3 {[%clk 0:00:12]} 76. Kc2 {[%clk 0:00:19.5]} 76...
Ke2 {[%clk 0:00:12]} 77. Kc3 {[%clk 0:00:19.6]} 77... e4 {[%clk 0:00:12.9]} 78.
Kd4 {[%clk 0:00:19.2]} 78... e3 {[%clk 0:00:13.8]} 0-1